bitfinex/quotes_BTCUSD_20250314
["timestamp","ask_amount","ask_price","bid_price","bid_amount"]
[1741956439188,0.539435,83530.0,83527.0,0.55355596]
[1741956439636,0.3,83530.0,83527.0,0.31411396]
[1741956439840,0.551412,83528.0,83527.0,0.31411396]
[1741956440986,0.551412,83528.0,83523.0,0.0001693]
[1741956440987,0.551424,83524.0,83523.0,0.0001693]
[1741956441193,0.3,83524.0,83523.0,0.0001693]
[1741956442219,0.551424,83524.0,83523.0,0.0001693]
[1741956442416,0.3,83524.0,83523.0,0.2396243]
[1741956442668,0.3,83524.0,83523.0,0.2406243]
[1741956443574,0.0003388,83536.0,83535.0,0.23942]
[1741956443786,0.0003388,83536.0,83535.0,0.251391]
[1741956444164,0.0003388,83536.0,83535.0,0.330291]
[1741956444552,0.0003388,83536.0,83535.0,0.31832]
[1741956444985,0.01351085,83536.0,83535.0,0.002]
[1741956445134,0.31351085,83536.0,83535.0,0.002]
[1741956445339,0.55292785,83536.0,83535.0,0.002]
[1741956445728,0.56489785,83536.0,83532.0,0.239426]
[1741956445913,0.55292785,83536.0,83533.0,0.239424]
[1741956446255,0.3,83534.0,83532.0,0.239426]
[1741956446454,0.3,83534.0,83533.0,0.2395954]
[1741956446694,0.3,83534.0,83533.0,0.0001694]
[1741956447125,0.3,83534.0,83533.0,0.2395954]
[1741956447872,0.3,83535.0,83533.0,0.2395954]
[1741956448075,0.3,83535.0,83534.0,0.239423]
[1741956449605,0.3003388,83536.0,83533.0,0.0001694]
[1741956449814,0.5397588,83536.0,83533.0,0.0001694]
[1741956450212,0.3003388,83536.0,83534.0,0.239423]
[1741956450643,0.251394,83534.0,83533.0,0.0001694]
[1741956451255,0.10756046,83535.0,83533.0,0.0001694]
[1741956451454,0.539423,83534.0,83533.0,0.0001694]
[1741956451670,0.551394,83534.0,83533.0,0.0001694]
[1741956451863,0.551424,83524.0,83523.0,0.0001693]
[1741956452533,0.55132517,83524.0,83523.0,0.0001693]
[1741956452863,0.011973,83519.0,83510.0,0.239491]
[1741956453066,0.539483,83513.0,83512.0,0.0001694]
[1741956453405,0.3,83513.0,83512.0,0.0001694]
[1741956453761,0.3,83513.0,83512.0,0.2396554]
[1741956453960,0.3,83513.0,83512.0,0.2516294]
[1741956454195,0.3,83513.0,83512.0,0.2396554]
[1741956454536,0.3,83513.0,83512.0,0.2516294]
[1741956455697,0.3,83513.0,83512.0,0.2556294]
[1741956457836,0.3,83513.0,83512.0,0.0041694]
[1741956458041,0.60867859,83513.0,83512.0,0.0041694]
[1741956458829,0.60867859,83513.0,83512.0,0.0001694]
[1741956459306,0.63523499,83513.0,83512.0,0.0001694]
[1741956459922,0.3,83495.0,83492.0,0.30128336]
[1741956460145,0.3,83496.0,83494.0,0.239536]
[1741956460352,0.3,83496.0,83493.0,0.23954]
[1741956460560,0.539534,83496.0,83493.0,0.23954]
[1741956461016,0.539534,83496.0,83492.0,0.30128336]
[1741956461017,0.011976,83495.0,83492.0,0.30128336]
[1741956461191,0.02829971,83495.0,83492.0,0.30128336]
[1741956461406,0.539541,83493.0,83492.0,0.30128336]
[1741956462007,0.551518,83493.0,83492.0,0.30128336]
[1741956462333,0.539558,83487.0,83486.0,0.0001694]
[1741956462766,0.3,83487.0,83486.0,0.2397304]
[1741956464102,0.35847323,83487.0,83486.0,0.2397304]
[1741956464299,0.3,83487.0,83486.0,0.2397304]
[1741956465535,0.3,83487.0,83486.0,0.2437304]
[1741956466730,0.30902333,83487.0,83486.0,0.2437304]
[1741956467276,0.30902333,83487.0,83486.0,0.2217304]
[1741956468746,0.30902333,83487.0,83486.0,0.004]
[1741956468946,0.64176546,83487.0,83486.0,0.004]
[1741956469518,0.56055833,83487.0,83486.0,0.004]
[1741956470525,0.30902333,83487.0,83486.0,0.2437305]
[1741956470680,0.30936233,83487.0,83486.0,0.2437305]
[1741956470882,0.30936233,83487.0,83486.0,0.0041695]
[1741956471168,0.54892033,83487.0,83486.0,0.0041695]
[1741956471344,0.41575846,83487.0,83486.0,0.0041695]
[1741956471683,0.41575846,83487.0,83486.0,0.0001695]
[1741956471883,0.30936233,83487.0,83486.0,0.241561]
[1741956472313,0.30936233,83487.0,83486.0,0.002]
[1741956472494,0.56089733,83487.0,83486.0,0.002]
[1741956474126,0.539563,83486.0,83482.0,0.2197414]
[1741956474326,0.3,83484.0,83482.0,0.2197414]
[1741956474921,0.011978,83481.0,83473.0,0.31326236]
[1741956475169,0.551563,83478.0,83473.0,0.30128336]
[1741956475359,0.3,83478.0,83474.0,0.239593]
[1741956475700,0.3,83478.0,83477.0,0.2521956]
[1741956475817,0.3,83478.0,83477.0,0.0126096]
[1741956476262,0.3,83478.0,83477.0,0.2521956]
[1741956476880,0.3,83478.0,83477.0,0.2531956]
[1741956477083,0.3,83478.0,83477.0,0.0136096]
[1741956477439,0.539584,83478.0,83477.0,0.0136096]
[1741956477641,0.38390655,83478.0,83477.0,0.0136096]
[1741956478118,0.63546955,83478.0,83477.0,0.0136096]
[1741956478351,0.38390655,83478.0,83477.0,0.0136096]
[1741956478557,0.539584,83478.0,83477.0,0.0136096]
[1741956478730,0.3,83478.0,83477.0,0.2531956]
[1741956479142,0.3,83478.0,83477.0,0.0136096]
[1741956479315,0.3,83478.0,83477.0,0.0126096]
[1741956479528,0.3563528,83478.0,83477.0,0.0126096]
[1741956479703,0.5959368,83478.0,83477.0,0.0126096]
[1741956480367,0.6079158,83478.0,83477.0,0.0136096]
[1741956480646,0.551563,83478.0,83477.0,0.0136096]
[1741956481304,0.551563,83478.0,83477.0,0.0116096]
[1741956481528,0.601377,83473.0,83472.0,8e-05]
[1741956481728,0.539638,83459.0,83458.0,0.14173588]
[1741956481937,0.3,83458.0,83454.0,0.2398195]
[1741956482144,0.3,83458.0,83457.0,0.239644]
[1741956482390,0.3,83458.0,83454.0,0.0001695]
[1741956482391,0.311982,83456.0,83454.0,0.0001695]
[1741956485385,0.38525102,83456.0,83454.0,0.0001695]
[1741956485567,0.50482605,83456.0,83454.0,0.0001695]
[1741956486223,0.50582605,83456.0,83454.0,0.0001695]
[1741956486443,0.311985,83432.0,83423.0,0.23974]
[1741956486660,0.311985,83432.0,83418.0,0.011987]
[1741956486661,0.3,83432.0,83431.0,0.0008]
[1741956487063,0.3,83432.0,83430.0,0.23552]
[1741956487744,0.3,83435.0,83432.0,0.239713]
[1741956487955,0.3,83435.0,83433.0,0.239712]
[1741956488362,0.64075285,83435.0,83431.0,0.001]
[1741956488562,0.3,83432.0,83425.0,0.239736]
[1741956488768,0.3,83432.0,83428.0,0.239726]
[1741956488971,0.311985,83432.0,83425.0,0.239735]
[1741956489171,0.011986,83430.0,83418.0,0.011987]
[1741956489421,0.29898702,83428.0,83427.0,0.239729]
[1741956489731,0.34075385,83435.0,83431.0,0.239716]
[1741956489945,0.3,83434.0,83431.0,0.239716]
[1741956490170,0.3,83434.0,83432.0,0.239715]
[1741956490393,0.3,83434.0,83430.0,0.239721]
[1741956490571,0.239713,83433.0,83429.0,0.239723]
[1741956490831,0.239716,83432.0,83429.0,0.239723]
[1741956491028,0.3,83428.0,83427.0,0.002]
[1741956491469,0.311986,83428.0,83427.0,0.002]
[1741956492175,0.239724,83429.0,83427.0,0.002]
[1741956492176,0.3,83429.0,83427.0,0.002]
[1741956492422,0.3,83429.0,83428.0,0.239726]
[1741956493057,0.3,83430.0,83429.0,0.239724]
[1741956493315,0.31422946,83430.0,83428.0,0.239726]
[1741956493532,0.3,83430.0,83428.0,0.239726]
[1741956493751,0.3,83430.0,83427.0,0.23973]
[1741956494015,0.3,83430.0,83428.0,0.239727]
[1741956494451,0.539719,83431.0,83429.0,0.001]
[1741956494895,0.3,83425.0,83421.0,0.239745]
[1741956495129,0.3,83421.0,83418.0,0.239756]
[1741956495383,0.3,83421.0,83420.0,0.23975]
[1741956495653,0.251725,83424.0,83416.0,0.09238028]
[1741956495654,0.3,83417.0,83416.0,0.09238028]
[1741956495891,0.3,83411.0,83408.0,0.0001694]
[1741956496124,0.011989,83407.0,83394.0,0.079]
[1741956496323,0.3,83406.0,83394.0,0.251815]
[1741956496532,0.3,83406.0,83401.0,0.239803]
[1741956496743,0.32362742,83406.0,83401.0,0.239803]
[1741956496950,0.67603636,83406.0,83403.0,0.239799]
[1741956497163,0.3,83404.0,83396.0,0.0375]
[1741956497377,0.3,83397.0,83396.0,0.0375]
[1741956497590,0.4404,83397.0,83396.0,0.0375]
[1741956497807,0.45239,83397.0,83396.0,0.0375]
[1741956498024,0.5240085,83397.0,83396.0,0.0375]
[1741956498234,0.54631902,83397.0,83396.0,0.0375]
[1741956498483,0.24631902,83397.0,83396.0,0.0375]
[1741956499610,0.17470052,83397.0,83396.0,0.0375]
[1741956499837,0.15239,83397.0,83396.0,0.0375]
[1741956500351,0.15439,83397.0,83396.0,0.0385]
[1741956500578,0.45439,83397.0,83396.0,0.0385]
[1741956500795,0.45439,83397.0,83396.0,0.0375]
[1741956500968,0.44308,83397.0,83396.0,0.0375]
[1741956501172,0.45807,83397.0,83396.0,0.0375]
[1741956501578,0.44608,83397.0,83396.0,0.0375]
[1741956502200,0.45807,83397.0,83396.0,0.0375]
[1741956502430,0.5282564,83397.0,83396.0,0.0375]
[1741956502856,0.551816,83394.0,83393.0,0.0127791]
[1741956503265,5.242816,83394.0,83393.0,0.0127791]
[1741956503478,0.551822,83392.0,83371.0,0.0001695]
[1741956503646,0.64486213,83392.0,83372.0,0.239887]
[1741956503854,6.32539513,83392.0,83371.0,0.2400585]
[1741956504060,5.37496213,83392.0,83371.0,0.0001695]
[1741956504265,5.13626213,83392.0,83375.0,0.239879]
[1741956504473,4.91976213,83392.0,83377.0,0.239874]
[1741956504687,0.3,83377.0,83375.0,0.221869]
[1741956505009,0.3,83377.0,83376.0,0.00797691]
[1741956505215,0.539874,83377.0,83376.0,0.00797691]
[1741956505383,0.539874,83377.0,83374.0,0.239881]
[1741956505384,0.3,83377.0,83375.0,0.239879]
[1741956505585,0.539874,83377.0,83376.0,0.00797691]
[1741956505793,0.311993,83379.0,83376.0,0.00797691]
[1741956506003,0.239875,83377.0,83373.0,0.239884]
[1741956506362,0.239877,83376.0,83373.0,0.239884]
[1741956506599,0.14496,83392.0,83382.0,0.0791]
[1741956506769,0.23984,83389.0,83386.0,0.239848]
[1741956506980,0.251825,83391.0,83386.0,0.239848]
[1741956507179,0.251825,83391.0,83382.0,0.239858]
[1741956507315,0.251825,83391.0,83386.0,0.239847]
[1741956507522,0.239839,83390.0,83386.0,0.0001696]
[1741956507734,0.03825058,83389.0,83386.0,0.0001696]
[1741956507989,0.239842,83388.0,83386.0,0.0001696]
[1741956508405,0.03825058,83389.0,83386.0,0.0001696]
[1741956508607,0.239839,83389.0,83386.0,0.2400166]
[1741956508813,0.011991,83390.0,83387.0,0.239845]
[1741956509029,0.15015882,83392.0,83391.0,0.239834]
[1741956509258,0.00919882,83392.0,83391.0,0.239834]
[1741956509494,0.14108,83400.0,83399.0,0.239811]
[1741956509694,0.14108,83410.0,83404.0,0.010989]
[1741956509900,0.14108,83410.0,83409.0,0.239782]
[1741956510553,0.14108,83410.0,83407.0,0.239786]
[1741956511017,0.380861,83410.0,83407.0,0.239786]
[1741956511237,0.3,83409.0,83408.0,0.239785]
[1741956511894,0.3,83409.0,83405.0,0.239792]
[1741956512148,0.3,83407.0,83405.0,0.239792]
[1741956512368,0.251777,83407.0,83404.0,0.238795]
[1741956512563,0.239791,83406.0,83404.0,0.238795]
[1741956512978,0.3,83406.0,83404.0,0.238795]
[1741956513199,0.3,83406.0,83215.0,0.00012231]
[1741956513200,0.3,83398.0,83392.0,0.239828]
[1741956513638,0.3,83398.0,83393.0,0.00785164]
[1741956514112,0.539825,83394.0,83393.0,0.00785164]
[1741956514342,0.3,83389.0,83387.0,0.239842]
[1741956514566,0.539841,83389.0,83386.0,0.2400146]
[1741956514797,0.239845,83387.0,83386.0,0.0001696]
[1741956515012,0.3,83383.0,83380.0,0.2180326]
[1741956515238,0.239874,83377.0,83343.0,0.0051695]
[1741956515503,0.3,83376.0,83372.0,0.239888]
[1741956515714,0.3,83376.0,83373.0,0.239884]
[1741956515948,0.31567283,83376.0,83375.0,0.251874]
[1741956516598,0.01567283,83376.0,83375.0,0.251874]
[1741956516812,0.001,83377.0,83376.0,0.25187]
[1741956516996,0.3,83381.0,83380.0,0.251858]
[1741956517467,0.3,83387.0,83385.0,0.23985]
[1741956517684,0.539846,83387.0,83384.0,0.239854]
[1741956517934,0.011992,83385.0,83376.0,0.011993]
[1741956518154,0.251849,83383.0,83377.0,0.239874]
[1741956518366,0.239863,83381.0,83377.0,0.239874]
[1741956518582,0.3,83381.0,83378.0,0.239871]
[1741956518801,0.3,83381.0,83376.0,0.239876]
[1741956518802,0.239865,83380.0,83376.0,0.239876]
[1741956519023,0.3,83376.0,83375.0,0.002]
[1741956519288,0.239877,83376.0,83375.0,0.002]
[1741956519523,0.3346411,83376.0,83375.0,0.002]
[1741956519998,0.3346411,83376.0,83371.0,0.0001695]
[1741956519999,0.551882,83372.0,83371.0,0.0001695]
[1741956520452,0.551882,83372.0,83371.0,0.2400605]
[1741956520453,0.3,83372.0,83371.0,0.2400605]
[1741956520682,0.00886642,83395.0,83386.0,0.25184]
[1741956520945,0.14204,83400.0,83397.0,0.239813]
[1741956521163,0.14204,83402.0,83392.0,0.011991]
[1741956521381,0.0153839,83400.0,83390.0,0.011991]
[1741956521593,0.3,83401.0,83400.0,0.239808]
[1741956521837,0.02241721,83401.0,83400.0,0.239808]
[1741956522056,0.02241721,83401.0,83399.0,0.239808]
[1741956522275,0.33787949,83401.0,83396.0,0.239817]
[1741956522497,0.33787949,83401.0,83400.0,0.239808]
[1741956522735,0.33787949,83401.0,83400.0,0.237808]
[1741956522933,0.31546228,83401.0,83400.0,0.237808]
[1741956523390,0.31646228,83401.0,83400.0,0.237808]
[1741956523823,0.31646228,83401.0,83398.0,0.239812]
[1741956524040,0.3,83399.0,83397.0,0.239816]
[1741956524471,0.3,83399.0,83398.0,0.239813]
[1741956524643,0.3,83399.0,83397.0,0.239816]
[1741956524838,0.01199,83398.0,83385.0,0.011992]
[1741956525066,0.239813,83399.0,83394.0,0.239824]
[1741956525436,0.240813,83399.0,83394.0,0.239824]
[1741956525667,0.3,83398.0,83397.0,0.239816]
[1741956525866,0.3535013,83398.0,83393.0,0.239828]
[1741956526074,0.3535013,83398.0,83395.0,0.23982]
[1741956526476,0.002,83399.0,83397.0,0.239816]
[1741956526692,0.001,83399.0,83398.0,0.239813]
[1741956527086,0.31546228,83401.0,83394.0,0.239824]
[1741956527281,0.3,83400.0,83399.0,0.23981]
[1741956527502,0.3,83400.0,83398.0,0.239813]
[1741956527709,0.11957503,83399.0,83390.0,0.251825]
[1741956527929,0.01199,83396.0,83386.0,0.011992]
[1741956528178,0.3,83394.0,83391.0,0.239831]
[1741956528393,0.3,83394.0,83386.0,0.011992]
[1741956528394,0.3,83394.0,83392.0,0.239828]
[1741956528619,0.3,83394.0,83393.0,0.239828]
[1741956528820,0.311991,83394.0,83392.0,0.007859]
[1741956529052,0.539825,83394.0,83393.0,0.00785164]
[1741956529271,0.3,83395.0,83392.0,0.23983]
[1741956529520,0.06065494,83394.0,83392.0,0.23983]
[1741956529748,0.539823,83395.0,83393.0,0.00785164]
[1741956530172,0.239825,83394.0,83393.0,0.00785164]
[1741956531540,0.251816,83394.0,83393.0,0.00785164]
[1741956531988,0.251816,83394.0,83393.0,0.00885164]
[1741956532210,0.37139103,83394.0,83393.0,0.001]
[1741956533125,0.38052819,83394.0,83393.0,0.002]
[1741956533374,0.38052819,83394.0,83393.0,0.001]
[1741956533813,0.3,83384.0,83383.0,0.239857]
[1741956534023,0.3,83384.0,83383.0,0.251849]
[1741956534233,0.3,83384.0,83383.0,0.24778232]
[1741956534447,0.3,83384.0,83383.0,0.25977432]
[1741956534902,0.3,83393.0,83391.0,0.239831]
[1741956535135,0.3,83393.0,83392.0,0.239831]
[1741956535354,0.3,83393.0,83392.0,0.24769]
[1741956535756,0.00913716,83394.0,83393.0,0.239828]
[1741956536109,0.539819,83396.0,83393.0,0.24767964]
[1741956536682,0.41957503,83396.0,83394.0,0.239824]
[1741956536857,0.4416,83396.0,83395.0,0.239822]
[1741956537713,0.00889033,83396.0,83395.0,0.239822]
[1741956537904,0.3,83398.0,83394.0,0.239824]
[1741956538069,0.239817,83397.0,83394.0,0.239824]
[1741956538291,0.3,83396.0,83395.0,0.239822]
[1741956538777,0.239812,83399.0,83396.0,0.239819]
[1741956538986,0.239812,83399.0,83395.0,0.239822]
[1741956539192,0.239812,83399.0,83395.0,0.217822]
[1741956539193,0.239815,83398.0,83395.0,0.217822]
[1741956539394,0.239819,83397.0,83394.0,0.23982]
[1741956539686,0.01199,83397.0,83392.0,0.239828]
[1741956539924,0.23982,83396.0,83394.0,0.239825]
[1741956540363,0.239817,83397.0,83394.0,0.239825]
[1741956540790,0.239821,83396.0,83393.0,0.239828]
[1741956541226,0.239821,83396.0,83393.0,0.24767964]
[1741956541492,0.239824,83395.0,83393.0,0.00785164]
[1741956541720,0.251805,83398.0,83393.0,0.00785164]
[1741956541976,0.002,83397.0,83390.0,0.239836]
[1741956542197,0.240817,83397.0,83393.0,0.24767864]
[1741956542418,0.3,83396.0,83393.0,0.239827]
[1741956542660,0.301,83396.0,83393.0,0.24767764]
[1741956542890,0.301,83396.0,83394.0,0.239824]
[1741956543120,0.301,83396.0,83395.0,0.239822]
[1741956543611,0.001,83396.0,83395.0,0.239822]
[1741956543861,0.3,83399.0,83396.0,0.239817]
[1741956544080,0.539825,83394.0,83393.0,0.0001697]
[1741956544295,0.551816,83394.0,83393.0,0.0001697]
[1741956545352,0.57575185,83394.0,83393.0,0.0001697]
[1741956545790,0.551816,83394.0,83393.0,0.0001697]
[1741956546211,0.553816,83394.0,83393.0,0.0001697]
[1741956546435,0.551816,83394.0,83393.0,0.0001697]
[1741956546768,0.553816,83394.0,83393.0,0.0001697]
[1741956547376,0.239852,83385.0,83382.0,0.2180287]
[1741956547777,0.239852,83385.0,83383.0,0.00816198]
[1741956548163,0.239854,83384.0,83383.0,0.00816198]
[1741956548580,0.55184,83386.0,83382.0,0.239859]
[1741956548786,0.539848,83386.0,83383.0,0.24801798]
[1741956549023,0.239854,83384.0,83383.0,0.00816198]
[1741956549180,0.251846,83384.0,83383.0,0.00816198]
[1741956549587,0.251846,83384.0,83383.0,0.00916198]
[1741956549833,0.251846,83384.0,83383.0,0.001]
[1741956549985,0.251846,83384.0,83383.0,0.00916198]
[1741956550225,0.251846,83384.0,83383.0,0.001]
[1741956551110,0.392606,83384.0,83383.0,0.001]
[1741956552779,0.74745853,83384.0,83383.0,0.002]
[1741956553380,0.692606,83384.0,83383.0,0.002]
[1741956554239,0.692606,83384.0,83383.0,0.001]
[1741956554592,0.692606,83384.0,83377.0,0.239873]
[1741956554593,0.3,83379.0,83377.0,0.239873]
[1741956554989,0.539868,83379.0,83376.0,0.226876]
[1741956555233,0.3,83379.0,83376.0,0.226876]
[1741956555436,0.3,83379.0,83377.0,0.239872]
[1741956555654,0.539869,83379.0,83374.0,0.011994]
[1741956555851,0.539866,83380.0,83377.0,0.239871]
[1741956556782,0.539866,83380.0,83378.0,0.23987]
[1741956557303,0.539866,83380.0,83377.0,0.239873]
[1741956557496,0.3,83381.0,83378.0,0.23987]
[1741956557697,0.539863,83381.0,83378.0,0.23987]
[1741956557902,0.239865,83380.0,83377.0,0.239873]
[1741956558447,0.539863,83381.0,83379.0,0.239867]
[1741956558676,0.239866,83380.0,83378.0,0.239871]
[1741956558894,0.539863,83381.0,83378.0,0.239871]
[1741956559097,0.239866,83380.0,83378.0,0.239871]
[1741956559307,0.239869,83379.0,83375.0,0.251873]
[1741956559609,0.239869,83379.0,83376.0,0.239876]
[1741956560029,0.239869,83379.0,83377.0,0.239873]
[1741956560626,0.3,83377.0,83376.0,0.239876]
[1741956560851,0.3,83377.0,83376.0,0.239877]
[1741956561384,0.3,83377.0,83376.0,0.25187]
[1741956561589,0.3,83377.0,83376.0,0.22987]
[1741956561798,0.539867,83380.0,83377.0,0.239874]
[1741956562436,0.239868,83379.0,83376.0,0.251869]
[1741956562602,0.539865,83380.0,83377.0,0.239873]
[1741956563382,0.3,83380.0,83378.0,0.23987]
[1741956563583,0.3,83380.0,83377.0,0.239873]
[1741956563584,0.3,83381.0,83379.0,0.239868]
[1741956563842,0.3,83381.0,83380.0,0.251858]
[1741956565626,0.3,83381.0,83380.0,0.252858]
[1741956566251,0.0376,83384.0,83383.0,0.251849]
[1741956566453,0.0376,83384.0,83383.0,0.301349]
[1741956566659,0.0376,83384.0,83383.0,0.31588985]
[1741956567278,0.0376,83384.0,83383.0,0.39298985]
[1741956567491,0.0376,83384.0,83383.0,0.48537013]
[1741956569084,0.0386,83384.0,83383.0,0.48637013]
[1741956569707,0.0386,83384.0,83383.0,0.48937013]
[1741956570286,0.0389394,83384.0,83383.0,0.48937013]
[1741956571145,0.0389394,83384.0,83383.0,0.48637013]
[1741956571367,0.0399394,83384.0,83383.0,0.49037013]
[1741956572858,0.0399394,83384.0,83383.0,1.18567013]
[1741956581625,0.0399394,83384.0,83383.0,1.17112928]
[1741956581832,0.0399394,83384.0,83383.0,1.12162928]
[1741956582830,0.0399394,83384.0,83383.0,1.13617013]
[1741956584254,0.03574448,83384.0,83383.0,1.13617013]
[1741956584472,0.0003394,83400.0,83383.0,1.13617013]
[1741956584671,0.0003394,83400.0,83395.0,0.26635385]
[1741956586268,0.0003394,83400.0,83395.0,0.26835385]
[1741956587658,0.0003394,83400.0,83395.0,0.27035385]
[1741956588080,0.0003394,83400.0,83395.0,0.35135385]
[1741956588264,0.0003394,83400.0,83395.0,0.44373413]
[1741956594103,4e-07,83396.0,83395.0,1.13903413]
[1741956594480,0.0003394,83400.0,83395.0,1.13903413]
[1741956594481,8e-07,83400.0,83399.0,0.251801]
[1741956594684,8e-07,83400.0,83399.0,0.26634185]
[1741956594882,8e-07,83400.0,83399.0,0.34794185]
[1741956595930,8e-07,83400.0,83399.0,0.35294185]
[1741956596151,8e-07,83400.0,83399.0,0.40024185]
[1741956596382,1e-06,83410.0,83409.0,0.011989]
[1741956596629,0.76168,83449.0,83446.0,0.251658]
[1741956596869,0.0478,83452.0,83446.0,0.251658]
[1741956597105,0.04718961,83447.0,83446.0,0.251658]
[1741956598257,0.01453208,83447.0,83446.0,0.251658]
[1741956598460,0.01453208,83447.0,83446.0,0.252658]
[1741956598604,0.128,83462.0,83461.0,0.239632]
[1741956598804,0.13698664,83462.0,83461.0,0.217632]
[1741956599295,0.00898664,83462.0,83461.0,0.229613]
[1741956599675,0.10685519,83463.0,83462.0,0.23963]
[1741956599879,0.40685519,83463.0,83462.0,0.23963]
[1741956600306,0.3,83462.0,83460.0,0.239635]
[1741956600514,0.011982,83457.0,83447.0,0.23967]
[1741956600702,0.3,83450.0,83446.0,0.011983]
[1741956600892,0.3,83450.0,83449.0,0.25165]
[1741956601454,0.3,83450.0,83447.0,0.239671]
[1741956601680,0.3,83450.0,83448.0,0.251652]
[1741956601882,0.239664,83450.0,83447.0,0.242671]
[1741956602080,0.539648,83456.0,83451.0,0.239661]
[1741956602081,0.23965,83455.0,83451.0,0.239661]
[1741956602309,0.3,83455.0,83451.0,0.011983]
[1741956602481,0.3,83455.0,83454.0,0.251634]
[1741956603277,0.01439989,83463.0,83454.0,0.251634]
[1741956603278,0.01439989,83463.0,83462.0,0.251611]
[1741956603449,0.01439989,83463.0,83462.0,0.3031319]
[1741956603658,0.0003394,83465.0,83464.0,0.251605]
[1741956606300,0.0003394,83465.0,83464.0,0.252605]
[1741956607075,0.01481882,83465.0,83464.0,0.252605]
[1741956607391,0.01481882,83465.0,83464.0,0.253605]
[1741956607594,0.01481882,83465.0,83464.0,0.28296672]
[1741956610103,0.0003394,83465.0,83464.0,0.38988785]
[1741956610539,0.0003394,83465.0,83464.0,0.43568785]
[1741956610744,0.0003394,83465.0,83464.0,0.43468785]
[1741956610898,0.0003394,83465.0,83464.0,0.43768785]
[1741956611112,0.0003394,83465.0,83464.0,0.43668785]
[1741956611521,0.0003394,83465.0,83464.0,0.43568785]
[1741956611721,0.0003394,83465.0,83464.0,0.43968785]
[1741956611983,0.0003394,83465.0,83464.0,0.43768785]
[1741956612186,0.0003394,83465.0,83464.0,0.44168785]
[1741956612524,0.0003394,83465.0,83464.0,0.43368785]
[1741956612721,0.0003394,83465.0,83464.0,0.43868785]
[1741956613916,0.0003394,83465.0,83464.0,0.39288785]
[1741956614154,0.0003394,83465.0,83464.0,0.10936128]
[1741956614317,0.0003394,83465.0,83464.0,0.35398528]
[1741956614947,0.0003394,83465.0,83464.0,0.34898528]
[1741956615078,0.0003394,83465.0,83464.0,0.34398528]
[1741956615278,0.0003394,83465.0,83464.0,0.34698528]
[1741956615489,0.0003394,83465.0,83464.0,0.34998528]
[1741956615722,0.0003394,83465.0,83464.0,0.34698528]
[1741956615958,0.0003394,83465.0,83464.0,0.09238028]
[1741956616201,0.0003394,83465.0,83464.0,0.34998528]
[1741956616398,0.0003394,83465.0,83464.0,0.33800428]
[1741956616919,0.2399524,83468.0,83465.0,0.239621]
[1741956617103,0.0003394,83468.0,83466.0,0.239617]
[1741956617450,0.0003394,83468.0,83467.0,0.239615]
[1741956617891,0.0003394,83468.0,83467.0,0.251595]
[1741956618875,0.2399514,83468.0,83467.0,0.004]
[1741956619137,0.0003394,83468.0,83467.0,0.255595]
[1741956620037,0.0003394,83468.0,83467.0,0.27013585]
[1741956621801,0.0003394,83468.0,83467.0,0.26813585]
[1741956622019,0.0003394,83468.0,83467.0,0.27013585]
[1741956623060,0.0003394,83468.0,83467.0,0.36251613]
[1741956623265,4e-07,83468.0,83467.0,0.44351613]
[1741956624223,4e-07,83468.0,83467.0,0.44451613]
[1741956624460,4e-07,83468.0,83467.0,0.47273095]
[1741956624680,4e-07,83468.0,83467.0,0.47873095]
[1741956624880,4e-07,83468.0,83467.0,0.47666148]
[1741956625111,4e-07,83468.0,83467.0,0.48266148]
[1741956625323,4e-07,83468.0,83467.0,0.48866148]
[1741956626893,0.000339,83478.0,83477.0,0.31140585]
[1741956627116,0.000339,83478.0,83477.0,0.44928585]
[1741956627339,0.000339,83478.0,83477.0,0.45714285]
[1741956628256,0.000339,83478.0,83477.0,1.25582273]
[1741956628490,4e-07,83480.0,83479.0,0.25156]
[1741956628723,4e-07,83480.0,83479.0,0.27419314]
[1741956631068,4e-07,83480.0,83479.0,0.28019314]
[1741956631475,4e-07,83480.0,83479.0,1.07387302]
[1741956632105,4e-07,83480.0,83479.0,1.07869767]
[1741956632645,0.01878677,83480.0,83479.0,1.07869767]
[1741956637074,1.7e-07,83487.0,83486.0,0.251539]
[1741956637278,1.7e-07,83487.0,83486.0,1.05375973]
[1741956637389,1.7e-07,83487.0,83486.0,1.06663623]
[1741956637600,1.7e-07,83487.0,83486.0,1.07163623]
[1741956637802,1.7e-07,83487.0,83486.0,1.20023623]
[1741956638274,1.7e-07,83487.0,83486.0,1.2144608]
[1741956638493,1.7e-07,83487.0,83486.0,1.20123623]
[1741956638703,1.7e-07,83487.0,83486.0,1.07863623]
[1741956639293,1.7e-07,83487.0,83486.0,1.07263623]
[1741956639700,1.7e-07,83487.0,83486.0,1.07863623]
[1741956639896,0.0332399,83487.0,83486.0,1.21019623]
[1741956640239,0.0332399,83487.0,83486.0,0.51489623]
[1741956640879,0.0003392,83494.0,83493.0,0.251518]
[1741956640880,2e-07,83494.0,83493.0,0.251518]
[1741956641022,4e-07,83505.0,83504.0,0.26602485]
[1741956641224,4e-07,83505.0,83504.0,0.37118976]
[1741956641425,4e-07,83509.0,83508.0,0.251472]
[1741956641629,4e-07,83509.0,83508.0,1.06645793]
[1741956642915,0.01877972,83509.0,83508.0,1.06645793]
[1741956643132,0.01877972,83509.0,83508.0,1.07845793]
[1741956644465,0.01877972,83509.0,83508.0,1.21709793]
[1741956644663,4e-07,83509.0,83508.0,1.21709793]
[1741956645118,4e-07,83509.0,83508.0,1.07845793]
[1741956645324,4e-07,83509.0,83508.0,1.07245793]
[1741956646063,4e-07,83509.0,83508.0,0.38315793]
[1741956649101,0.01878056,83509.0,83508.0,0.38315793]
[1741956649311,0.3,83528.0,83525.0,0.239448]
[1741956649312,0.239441,83528.0,83525.0,0.239448]